lending/lending_fUSD_20241120
["ID","MTS","AMOUNT","RATE_DAILY","PERIOD"]
[342729679,1732090238889,-150.0,0.00042696,30]
[342729681,1732090238899,-362.56,0.00042696,30]
[342729683,1732090238909,-764.22,0.00042696,30]
[342729685,1732090238918,-150.0,0.00042696,30]
[342729687,1732090238927,-150.0,0.00042696,30]
[342729689,1732090238936,-150.0,0.00042696,30]
[342729691,1732090238946,-150.0,0.00042696,30]
[342729693,1732090238955,-150.0,0.00042696,30]
[342729695,1732090238964,-433.41,0.00042696,30]
[342729696,1732090238973,-362.56,0.00042696,30]
[342729698,1732090238983,-150.0,0.00042696,30]
[342729700,1732090238992,-433.22,0.00042696,30]
[342729702,1732090239001,-150.0,0.00042696,30]
[342729704,1732090239010,-150.0,0.00042696,30]
[342729706,1732090239019,-150.0,0.00042696,30]
[342729708,1732090239029,-150.0,0.00042696,30]
[342729710,1732090239039,-764.22,0.00042696,30]
[342729712,1732090239048,-433.41,0.00042696,30]
[342729714,1732090239057,-362.56,0.00042696,30]
[342729716,1732090239066,-150.0,0.00042696,30]
[342729718,1732090239076,-150.0,0.00042696,30]
[342729720,1732090239086,-150.0,0.00042696,30]
[342729722,1732090239095,-150.0,0.00042696,30]
[342729724,1732090239107,-150.0,0.00042696,30]
[342729726,1732090239116,-150.0,0.00042696,30]
[342729728,1732090239125,-150.0,0.00042696,30]
[342729730,1732090239134,-764.22,0.00042696,30]
[342729732,1732090239143,-362.56,0.00042696,30]
[342729734,1732090239152,-150.0,0.00042696,30]
[342729736,1732090239161,-150.0,0.00042696,30]
[342729738,1732090239170,-433.41,0.00042696,30]
[342729740,1732090239179,-150.0,0.00042696,30]
[342729742,1732090239188,-150.0,0.00042696,30]
[342729744,1732090239197,-150.0,0.00042696,30]
[342729746,1732090239207,-764.22,0.00042696,30]
[342729748,1732090239216,-433.22,0.00042696,30]
[342729750,1732090239225,-150.0,0.00042696,30]
[342729752,1732090239234,-362.56,0.00042696,30]
[342729754,1732090239243,-150.0,0.00042696,30]
[342729756,1732090239251,-433.41,0.00042696,30]
[342729758,1732090239260,-764.22,0.00042696,30]
[342729760,1732090239269,-150.0,0.00042696,30]
[342729762,1732090239283,-150.0,0.00042696,30]
[342729764,1732090239292,-150.0,0.00042696,30]
[342729766,1732090239301,-362.56,0.00042696,30]
[342729768,1732090239310,-150.0,0.00042696,30]
[342729770,1732090239321,-150.0,0.00042696,30]
[342729772,1732090239330,-433.41,0.00042696,30]
[342729774,1732090239339,-764.22,0.00042696,30]
[342729776,1732090239349,-150.0,0.00042696,30]
[342729778,1732090239359,-150.0,0.00042696,30]
[342729780,1732090239370,-433.22,0.00042696,30]
[342729782,1732090239379,-150.0,0.00042696,30]
[342729784,1732090239388,-362.56,0.00042696,30]
[342729786,1732090239397,-433.41,0.00042696,30]
[342729788,1732090239407,-150.0,0.00042696,30]
[342729790,1732090239416,-150.0,0.00042696,30]
[342729792,1732090239426,-764.22,0.00042696,30]
[342729794,1732090239435,-150.44,0.00042696,30]
[342729796,1732090239444,-150.0,0.00042696,30]
[342729798,1732090239454,-150.0,0.00042696,30]
[342729800,1732090239465,-362.56,0.00042696,30]
[342729802,1732090239473,-433.41,0.00042696,30]
[342729804,1732090239482,-150.0,0.00042696,30]
[342729806,1732090239491,-764.22,0.00042696,30]
[342729808,1732090239501,-150.0,0.00042696,30]
[342729810,1732090239510,-150.0,0.00042696,30]
[342729812,1732090239519,-433.41,0.00042696,30]
[342729814,1732090239528,-433.22,0.00042696,30]
[342729816,1732090239537,-150.0,0.00042696,30]
[342729818,1732090239546,-150.0,0.00042696,30]
[342729820,1732090239555,-362.56,0.00042696,30]
[342729822,1732090239564,-764.22,0.00042696,30]
[342729824,1732090239573,-433.41,0.00042696,30]
[342729826,1732090239583,-150.0,0.00042696,30]
[342729828,1732090239592,-150.0,0.00042696,30]
[342729830,1732090239602,-150.0,0.00042696,30]
[342729832,1732090239611,-764.22,0.00042696,30]
[342729834,1732090239620,-150.0,0.00042696,30]
[342729849,1732090239755,-433.41,0.00042696,30]
[342729851,1732090239765,-362.56,0.00042696,30]
[342729853,1732090239775,-433.22,0.00042696,30]
[342729855,1732090239784,-362.56,0.00042696,30]
[342729857,1732090239794,-150.0,0.00042696,30]
[342729859,1732090239804,-150.0,0.00042696,30]
[342729861,1732090239813,-764.22,0.00042696,30]
[342729863,1732090239823,-362.56,0.00042696,30]
[342729865,1732090239832,-764.22,0.00042696,30]
[342729867,1732090239842,-150.0,0.00042696,30]
[342729869,1732090239851,-362.56,0.00042696,30]
[342729871,1732090239860,-764.22,0.00042696,30]
[342729873,1732090239869,-150.0,0.00042696,30]
[342729875,1732090239878,-150.0,0.00042696,30]
[342729877,1732090239887,-150.0,0.00042696,30]
[342729879,1732090239897,-433.22,0.00042696,30]
[342729881,1732090239906,-764.22,0.00042696,30]
[342729883,1732090239915,-150.0,0.00042696,30]
[342729885,1732090239924,-150.0,0.00042696,30]
[342729887,1732090239933,-362.56,0.00042696,30]
[342729889,1732090239943,-764.22,0.00042696,30]
[342729891,1732090239951,-150.0,0.00042696,30]
[342729893,1732090239962,-150.0,0.00042696,30]
[342729895,1732090239971,-150.0,0.00042696,30]
[342729897,1732090239980,-150.0,0.00042696,30]
[342729899,1732090239989,-433.22,0.00042696,30]
[342729901,1732090239999,-362.56,0.00042696,30]
[342729903,1732090240009,-150.0,0.00042696,30]
[342729905,1732090240018,-764.22,0.00042696,30]
[342729907,1732090240027,-150.0,0.00042696,30]
[342729909,1732090240036,-150.0,0.00042696,30]
[342729911,1732090240045,-362.56,0.00042696,30]
[342729913,1732090240054,-150.0,0.00042696,30]
[342729915,1732090240063,-150.0,0.00042696,30]
[342729917,1732090240072,-433.22,0.00042696,30]
[342729919,1732090240082,-362.56,0.00042696,30]
[342729921,1732090240092,-150.0,0.00042696,30]
[342729923,1732090240102,-764.22,0.00042696,30]
[342729925,1732090240111,-150.0,0.00042696,30]
[342729927,1732090240121,-150.0,0.00042696,30]
[342729929,1732090240130,-362.56,0.00042696,30]
[342729931,1732090240139,-150.0,0.00042696,30]
[342729933,1732090240149,-362.56,0.00042696,30]
[342729935,1732090240158,-150.0,0.00042696,30]
[342729937,1732090240167,-764.22,0.00042696,30]
[342729939,1732090240177,-433.22,0.00042696,30]
[342729941,1732090240186,-150.0,0.00042696,30]
[342729943,1732090240195,-150.0,0.00042696,30]
[342729945,1732090240204,-764.22,0.00042696,30]
[342729947,1732090240214,-362.56,0.00042696,30]
[342729949,1732090240223,-150.0,0.00042696,30]
[342729951,1732090240232,-764.22,0.00042696,30]
[342729953,1732090240242,-150.0,0.00042696,30]
[342729955,1732090240253,-150.0,0.00042696,30]
[342729957,1732090240264,-362.56,0.00042696,30]
[342729959,1732090240274,-433.22,0.00042696,30]
[342729961,1732090240285,-150.0,0.00042696,30]
[342729963,1732090240295,-362.56,0.00042696,30]
[342729965,1732090240304,-150.0,0.00042696,30]
[342729967,1732090240314,-150.0,0.00042696,30]
[342729969,1732090240323,-150.0,0.00042696,30]
[342729971,1732090240332,-362.56,0.00042696,30]
[342729973,1732090240341,-433.22,0.00042696,30]
[342729975,1732090240351,-150.0,0.00042696,30]
[342729977,1732090240360,-362.56,0.00042696,30]
[342729979,1732090240369,-363.41,0.00042696,30]
[342729981,1732090240378,-150.0,0.00042696,30]
[342729983,1732090240387,-362.56,0.00042696,30]
[342729984,1732090240396,-433.22,0.00042696,30]
[342729986,1732090240405,-362.56,0.00042696,30]
[342729989,1732090240414,-155.92,0.00042696,30]
[342729991,1732090240423,-362.56,0.00042696,30]
[342729992,1732090240432,-433.22,0.00042696,30]
[342729995,1732090240442,-362.56,0.00042696,30]
[342729997,1732090240451,-362.56,0.00042696,30]
[342729998,1732090240462,-433.22,0.00042696,30]
[342730001,1732090240471,-362.56,0.00042696,30]
[342730003,1732090240480,-362.56,0.00042696,30]
[342730005,1732090240489,-433.22,0.00042696,30]
[342730006,1732090240499,-362.56,0.00042696,30]
[342730008,1732090240508,-362.56,0.00042696,30]
[342730010,1732090240517,-362.56,0.00042696,30]
[342730012,1732090240526,-362.56,0.00042696,30]
[342730014,1732090240536,-607.72,0.00042696,30]
[342730016,1732090240546,-433.22,0.00042696,30]
[342730018,1732090240556,-235.47,0.00042696,30]
[342730020,1732090240568,-433.22,0.00042696,30]
[342730022,1732090240578,-362.56,0.00042696,30]
[342730024,1732090240587,-362.56,0.00042696,30]
[342730026,1732090240596,-362.56,0.00042696,30]
[342730028,1732090240605,-362.56,0.00042696,30]
[342730030,1732090240614,-362.56,0.00042696,30]
[342730032,1732090240623,-433.22,0.00042696,30]
[342730034,1732090240632,-433.22,0.00042696,30]
[342730036,1732090240641,-433.22,0.00042696,30]
[342730038,1732090240651,-433.22,0.00042696,30]
[342730040,1732090240660,-433.22,0.00042696,30]
[342730042,1732090240670,-433.22,0.00042696,30]
[342730044,1732090240679,-433.22,0.00042696,30]
[342730046,1732090240687,-433.22,0.00042696,30]
[342730048,1732090240696,-433.22,0.00042696,30]
[342730050,1732090240705,-433.22,0.00042696,30]
[342730052,1732090240715,-433.22,0.00042696,30]
[342730054,1732090240725,-433.22,0.00042696,30]
[342730056,1732090240734,-433.22,0.00042696,30]
[342730058,1732090240743,-254.43,0.00042696,30]
[342730060,1732090240752,-4652.324,0.00042783,2]
[342730062,1732090240761,-400.0,0.00043,2]
[342730064,1732090240770,-2159.33290047,0.00043,120]
[342730066,1732090240779,-9207.91844641,0.00043,120]
[342730068,1732090240788,-150.0,0.00043259,2]
[342730070,1732090240798,-195.178,0.0004326,120]
[342730072,1732090240807,-309.5,0.000433,2]
[342730074,1732090240815,-2000.0,0.0004346,120]
[342730076,1732090240825,-201.0,0.0004361,2]
[342730078,1732090240834,-214.0,0.0004361,30]
[342730080,1732090240843,-2018.0,0.0004368,2]
[342730082,1732090240852,-714.88096187,0.00043757,2]
[342730084,1732090240861,-413.715561,0.00044,57]
[342730086,1732090240870,-150.0,0.00044124,2]
[342730088,1732090240880,-1408.02,0.00044384,120]
[342730090,1732090240889,-150.0,0.00044989,2]
[342730092,1732090240899,-800.0,0.00045,120]
[342730094,1732090240908,-2800.0,0.00045,120]
[342730096,1732090240917,-450.0,0.00045,2]
[342730098,1732090240927,-151.0,0.00045014,120]
[342730100,1732090240937,-204.0,0.0004502,30]
[342730102,1732090240947,-201.0,0.0004502,30]
[342730104,1732090240956,-151.0,0.00045068,120]
[342730106,1732090240968,-150.52,0.00045134,120]
[342730108,1732090240977,-151.0,0.00045284,30]
[342730110,1732090240987,-150.0,0.00045284,30]
[342730112,1732090240996,-175.0,0.00045317,90]
[342730114,1732090241007,-928.5,0.000455,7]
[342730116,1732090241016,-150.0,0.00045589,10]
[342730118,1732090241025,-150.28,0.00045753,2]
[342730120,1732090241034,-150.0,0.00045854,2]
[342730122,1732090241043,-201.0,0.0004591,30]
[342730124,1732090241052,-214.0,0.0004591,30]
[342730126,1732090241062,-2018.0,0.00045944,2]
[342730128,1732090241071,-2699.16612559,0.00046,120]
[342730130,1732090241079,-11509.89805802,0.00046,120]
[342730131,1732090241088,-1401.935205,0.000465,30]
[342730132,1732090241097,-4000.0,0.00046575,30]
[342730133,1732090241107,-150.0,0.0004672,2]
[342730134,1732090241116,-195.181,0.0004697,120]
[342730135,1732090241125,-500.0,0.00047,2]
[342730136,1732090241134,-318.03,0.00047354,2]
[342730137,1732090241143,-180.99,0.00047354,2]
[342730138,1732090241152,-204.0,0.0004741,30]
[342730139,1732090241161,-201.0,0.0004741,30]
[342730141,1732090241170,-150.0,0.00047585,2]
[342730143,1732090241180,-773.75,0.000478,14]
[342730145,1732090241189,-2699.16612559,0.00048,120]
[342730147,1732090241198,-11509.89805801,0.00048,120]
[342730149,1732090241209,-151.0,0.00048082,120]
[342730151,1732090241218,-2018.0,0.00048208,2]
[342730153,1732090241226,-201.0,0.0004821,30]
[342730155,1732090241235,-214.0,0.0004821,30]
[342730157,1732090241244,-233.685373,0.00048391,30]
[342730159,1732090241253,-150.0,0.0004845,2]
[342730161,1732090241262,-233.685373,0.00048996,30]
[342730163,1732090241273,-170.0,0.00049,120]
[342730165,1732090241285,-550.0,0.00049,2]
[342730167,1732090241295,-500.0,0.00049315,120]
[342730169,1732090241304,-500.0,0.00049315,120]
[342730171,1732090241313,-500.0,0.00049315,120]
[342730173,1732090241325,-502.90021546,0.00049315,120]
[342730175,1732090241333,-150.0,0.00049315,2]
[342730177,1732090241343,-233.685373,0.00049601,30]
[342730179,1732090241353,-1000.0,0.000498,120]
[342730181,1732090241362,-1000.0,0.000498,120]
[342730183,1732090241372,-204.0,0.0004981,30]
[342730185,1732090241381,-201.0,0.0004981,30]
[342730187,1732090241390,-291.95171253,0.000499,26]
[342730189,1732090241399,-220.0,0.00049955,2]
[342730191,1732090241409,-156.96,0.0005,120]
[342730193,1732090241419,-159.9481086,0.0005,89]
[342730195,1732090241429,-1000.0,0.0005,5]
[342730197,1732090241438,-500.0,0.0005,4]
[342730199,1732090241448,-24402.0,0.0005,10]
[342730201,1732090241460,-150.0,0.0005,120]
[342730203,1732090241470,-500.0,0.0005,120]
[342730205,1732090241480,-500.0,0.0005,120]
[342730207,1732090241489,-150.52,0.00050043,120]
[342730209,1732090241499,-155.18,0.00050098,2]
[342730211,1732090241508,-233.685373,0.00050206,30]
[342730212,1732090241517,-2018.0,0.00050471,2]
[342730214,1732090241527,-201.0,0.0005051,30]
[342730216,1732090241537,-214.0,0.0005051,30]
[342730219,1732090241546,-195.37,0.0005068,120]
[342730220,1732090241556,-233.685373,0.00050811,30]
[342730222,1732090241565,-291.95171253,0.000509,27]
[342730224,1732090241575,-600.0,0.00051,2]
[342730226,1732090241583,-281.0,0.00051,100]
[342730228,1732090241593,-151.0,0.00051096,120]
[342730230,1732090241602,-281.0,0.000515,101]
[342730232,1732090241611,-291.95171253,0.000519,29]
[342730234,1732090241620,-10206.10537769,0.00052,120]
[342730236,1732090241629,-281.0,0.00052,102]
[342730238,1732090241638,-4652.324,0.00052197,120]
[342730240,1732090241648,-204.0,0.0005221,30]
[342730242,1732090241657,-201.0,0.0005221,30]
[342730244,1732090241667,-281.0,0.000525,103]
[342730246,1732090241676,-2018.0,0.00052735,2]
[342730248,1732090241685,-201.0,0.0005281,30]
[342730250,1732090241694,-204.0,0.0005281,30]
[342730252,1732090241704,-214.0,0.0005281,30]
[342730254,1732090241715,-291.95171253,0.000529,30]
[342730256,1732090241724,-650.0,0.00053,2]
[342730258,1732090241734,-6909.88723328,0.00053,120]
[342730313,1732090242241,-3090.11276672,0.00053,120]
[342730315,1732090242250,-281.0,0.00053,104]
[342730317,1732090242259,-150.28,0.00053356,2]
[342730319,1732090242269,-281.0,0.000535,105]
[342730321,1732090242281,-318.03,0.00053756,2]
[342730323,1732090242290,-180.99,0.00053756,2]
[342730325,1732090242299,-4804.50535252,0.000539,120]
[342730331,1732090242366,-178734.43733972,0.000539,120]
[342730336,1732090242414,-3410.86175724,0.000539,120]
[342730356,1732090244246,-398.61129943,0.00010334,2]
[342730357,1732090244255,-398.61129943,0.00010542,2]
[342730358,1732090244265,-398.61129943,0.00010891,2]
[342730359,1732090244275,-398.61129943,0.00011086,2]
[342730360,1732090244287,-398.61129943,0.00011389,2]
[342730361,1732090244297,-160.19821848,0.00020673,2]
[342730362,1732090244307,-2952.99920133,0.00027397,10]
[342730363,1732090244319,-1557.73079867,0.00027397,10]
[342730364,1732090244329,-642.60368897,0.00046329,2]
[342730365,1732090244344,-72.2772729,0.00046329,2]
[342730366,1732090244355,-714.88096187,0.000489,2]
[342730367,1732090244366,-11418.96192989,0.000539,120]
[342730368,1732090244378,-4972.79182575,0.000539,120]
[342730369,1732090244390,-787.78,0.000539,120]
[342730370,1732090244475,-50870.66179488,0.000539,120]
[342730371,1732090244485,-291.95171253,0.000539,31]
[342730372,1732090244494,-304.6962626,0.00053987,60]
[342730373,1732090244503,-400.0,0.00053999,30]
[342730374,1732090244513,-400.0,0.00053999,30]
[342730375,1732090244524,-400.0,0.00053999,30]
[342730376,1732090244534,-400.0,0.00053999,30]
[342730377,1732090244544,-400.0,0.00053999,30]
[342730378,1732090244554,-53493.4514903,0.00054,120]
[342730379,1732090244564,-10000.0,0.00054,120]
[342730380,1732090244574,-281.0,0.00054,106]
[342730381,1732090244583,-260.73,0.00054,120]
[342730382,1732090244592,-260.73,0.00054,120]
[342730383,1732090244601,-260.73,0.00054,120]
[342730384,1732090244611,-260.73,0.00054,120]
[342730385,1732090244621,-151.0,0.0005411,120]
[342730386,1732090244631,-700.967602,0.000545,30]
[342730387,1732090244640,-281.0,0.000545,107]
[342730388,1732090244650,-204.0,0.0005461,30]
[342730389,1732090244660,-201.0,0.0005461,30]
[342730390,1732090244669,-400.0,0.00054793,30]
[342730391,1732090244679,-400.0,0.00054793,30]
[342730392,1732090244688,-400.0,0.00054793,30]
[342730393,1732090244698,-400.0,0.00054793,30]
[342730394,1732090244707,-357.26630242,0.00054793,30]
[342730395,1732090244719,-20000.0,0.00054794,2]
[342730396,1732090244728,-2935.72554926,0.00054794,120]
[342730397,1732090244738,-500.0,0.00054794,120]
[342730398,1732090244747,-606.79921865,0.00054794,120]
[342730399,1732090244756,-500.0,0.00054794,120]
[342730400,1732090244767,-500.0,0.00054794,120]
[342730401,1732090244776,-500.0,0.00054794,120]
[342730402,1732090244786,-500.0,0.00054794,120]
[342730403,1732090244795,-500.0,0.00054794,120]
[342730404,1732090244805,-505.99161972,0.00054794,120]
[342730405,1732090244814,-500.0,0.00054794,120]
[342730406,1732090244823,-502.03309929,0.00054794,120]
[342730407,1732090244833,-500.0,0.00054794,120]
[342730408,1732090244842,-500.0,0.00054794,120]
[342730409,1732090244852,-583.63,0.00054794,120]
[342730410,1732090244862,-500.0,0.00054794,3]
[342730411,1732090244872,-500.0,0.00054794,120]
[342730412,1732090244881,-500.0,0.00054794,120]
[342730413,1732090244890,-500.0,0.00054794,120]
[342730414,1732090244899,-500.0,0.00054794,120]
[342730415,1732090244909,-500.0,0.00054794,120]
[342730416,1732090244920,-1068.5,0.00054794,120]
[342730417,1732090244938,-598.94,0.00054794,120]
[342730418,1732090244948,-1682.29,0.00054794,120]
[342730419,1732090244958,-500.0,0.00054794,120]
[342730420,1732090244969,-500.0,0.00054794,120]
[342730421,1732090244978,-500.0,0.00054794,120]
[342730422,1732090244988,-500.0,0.00054794,120]
[342730423,1732090244997,-500.0,0.00054794,120]
[342730424,1732090245006,-12247.35,0.00054794,120]
[342730425,1732090245016,-500.0,0.00054794,120]
[342730426,1732090245026,-500.0,0.00054794,120]
[342730427,1732090245035,-500.0,0.00054794,120]
[342730428,1732090245045,-1420.1,0.00054794,120]
[342730429,1732090245055,-500.0,0.00054794,120]
[342730430,1732090245064,-1292.82,0.00054794,120]
[342730431,1732090245075,-500.0,0.00054794,120]
[342730432,1732090245084,-500.0,0.00054794,120]
[342730433,1732090245093,-500.0,0.00054794,120]
[342730434,1732090245103,-1329.44,0.00054794,120]
[342730435,1732090245112,-1265.92,0.00054794,120]
[342730436,1732090245121,-500.0,0.00054794,120]
[342730437,1732090245130,-500.0,0.00054794,120]
[342730438,1732090245139,-500.0,0.00054794,30]
[342730439,1732090245149,-500.0,0.00054794,120]
[342730440,1732090245158,-1607.8,0.00054794,120]
[342730441,1732090245167,-500.0,0.00054794,120]
[342730442,1732090245176,-584.35,0.00054794,120]
[342730443,1732090245185,-500.0,0.00054794,120]
[342730444,1732090245195,-500.0,0.00054794,120]
[342730445,1732090245204,-500.0,0.00054794,120]
[342730446,1732090245215,-500.0,0.00054794,120]
[342730447,1732090245224,-500.0,0.00054794,120]
[342730448,1732090245233,-500.0,0.00054794,120]
[342730449,1732090245243,-500.0,0.00054794,120]
[342730450,1732090245253,-1376.52,0.00054794,120]
[342730451,1732090245262,-500.0,0.00054794,120]
[342730452,1732090245271,-500.0,0.00054794,120]
[342730453,1732090245284,-500.0,0.00054794,120]
[342730454,1732090245293,-500.0,0.00054794,120]
[342730455,1732090245302,-500.0,0.00054794,120]
[342730456,1732090245312,-500.0,0.00054794,120]
[342730457,1732090245321,-500.0,0.00054794,120]
[342730458,1732090245330,-500.0,0.00054794,120]
[342730459,1732090245339,-500.0,0.00054794,120]
[342730460,1732090245348,-500.0,0.00054794,120]
[342730461,1732090245358,-500.0,0.00054794,120]
[342730462,1732090245367,-500.0,0.00054794,120]
[342730463,1732090245377,-742.7,0.00054794,20]
[342730464,1732090245386,-500.0,0.00054794,120]
[342730465,1732090245395,-500.0,0.00054794,120]
[342730466,1732090245404,-502.18760409,0.00054794,120]
[342730467,1732090245413,-500.8456626,0.00054794,120]
[342730468,1732090245422,-843.95,0.00054794,120]
[342730469,1732090245431,-500.0,0.00054794,120]
[342730470,1732090245441,-500.0,0.00054794,120]
[342730471,1732090245449,-501.57258704,0.00054794,120]
[342730472,1732090245458,-500.0,0.00054794,120]
[342730473,1732090245471,-495.85027263,0.00054794,120]
[342730474,1732090245480,-500.0,0.00054794,120]
[342730475,1732090245490,-500.0,0.00054794,120]
[342730476,1732090245499,-284.68291281,0.00054794,120]
[342730477,1732090245509,-501.50801157,0.00054794,120]
[342730478,1732090245518,-500.0,0.00054794,120]
[342730479,1732090245527,-500.0,0.00054794,120]
[342730480,1732090245536,-304.07809215,0.00054794,120]
[342730481,1732090245545,-500.0,0.00054794,120]
[342730482,1732090245555,-500.54728002,0.00054794,120]
[342730483,1732090245564,-500.0,0.00054794,120]
[342730484,1732090245574,-627.18971332,0.00054794,120]
[342730485,1732090245584,-500.0,0.00054794,120]
[342730486,1732090245594,-501.9875843,0.00054794,120]
[342730487,1732090245603,-500.0,0.00054794,120]
[342730488,1732090245613,-502.22952789,0.00054794,120]
[342730489,1732090245623,-500.39678627,0.00054794,120]
[342730490,1732090245633,-500.0,0.00054794,120]
[342730491,1732090245643,-501.56845626,0.00054794,120]
[342730492,1732090245652,-500.73280078,0.00054794,120]
[342730493,1732090245661,-500.0,0.00054794,120]
[342730494,1732090245670,-500.0,0.00054794,120]
[342730495,1732090245679,-500.0,0.00054794,120]
[342730496,1732090245689,-500.0,0.00054794,120]
[342730497,1732090245698,-500.0,0.00054794,120]
[342730498,1732090245708,-500.0,0.00054794,120]
[342730499,1732090245720,-500.0,0.00054794,120]
[342730500,1732090245729,-500.0,0.00054794,120]
[342730501,1732090245739,-500.0,0.00054794,120]
[342730502,1732090245748,-500.0,0.00054794,120]
[342730503,1732090245758,-500.43346151,0.00054794,120]
[342730504,1732090245768,-500.0,0.00054794,120]
[342730505,1732090245778,-500.0,0.00054794,120]
[342730506,1732090245787,-500.26267709,0.00054794,120]
[342730507,1732090245797,-500.0,0.00054794,120]
[342730508,1732090245806,-500.0,0.00054794,120]
[342730509,1732090245815,-500.0,0.00054794,120]
[342730510,1732090245825,-500.0,0.00054794,120]
[342730512,1732090245959,-500.0,0.00054794,120]
[342730513,1732090245971,-500.0,0.00054794,120]
[342730514,1732090245981,-500.0,0.00054794,120]
[342730515,1732090245991,-518.23569269,0.00054794,120]
[342730516,1732090246001,-500.0,0.00054794,120]
[342730517,1732090246011,-500.0,0.00054794,120]
[342730518,1732090246021,-500.0,0.00054794,120]
[342730519,1732090246031,-500.0,0.00054794,120]
[342730520,1732090246040,-500.0,0.00054794,120]
[342730521,1732090246050,-500.0,0.00054794,120]
[342730522,1732090246059,-510.49251526,0.00054794,120]
[342730523,1732090246068,-500.0,0.00054794,120]
[342730524,1732090246078,-500.0,0.00054794,120]
[342730525,1732090246087,-500.0,0.00054794,120]
[342730526,1732090246096,-500.0,0.00054794,120]
[342730527,1732090246105,-500.0,0.00054794,120]
[342730528,1732090246114,-500.0,0.00054794,120]
[342730529,1732090246123,-500.0,0.00054794,120]
[342730530,1732090246132,-1244.57,0.00054794,120]
[342730531,1732090246141,-500.0,0.00054794,120]
[342730532,1732090246150,-236.00071329,0.00054794,120]
[342730533,1732090246159,-500.0,0.00054794,120]
[342730534,1732090246170,-500.0,0.00054794,120]
[342730535,1732090246180,-1316.06,0.00054794,120]
[342730536,1732090246190,-500.0,0.00054794,120]
[342730537,1732090246200,-500.0,0.00054794,120]
[342730538,1732090246209,-500.0,0.00054794,120]
[342730539,1732090246223,-500.0,0.00054794,120]
[342730540,1732090246233,-500.0,0.00054794,120]
[342730541,1732090246242,-500.0,0.00054794,120]
[342730542,1732090246252,-500.0,0.00054794,120]
[342730543,1732090246261,-553.01,0.00054794,120]
[342730544,1732090246270,-500.0,0.00054794,120]
[342730545,1732090246283,-500.0,0.00054794,120]
[342730546,1732090246294,-500.0,0.00054794,120]
[342730547,1732090246303,-500.0,0.00054794,120]
[342730548,1732090246312,-500.0,0.00054794,120]
[342730549,1732090246322,-500.0,0.00054794,120]
[342730550,1732090246332,-500.0,0.00054794,120]
[342730551,1732090246342,-567.042237,0.00054794,120]
[342730552,1732090246353,-500.0,0.00054794,120]
[342730553,1732090246362,-500.0,0.00054794,120]
[342730554,1732090246376,-721.45,0.00054794,120]
[342730555,1732090246385,-500.0,0.00054794,120]
[342730556,1732090246394,-500.0,0.00054794,120]
[342730557,1732090246403,-500.0,0.00054794,120]